[Event "Early-Titled-Tuesday-Blitz-October-17-2023"]
[Site "Chess.com"]
[Date "2023.10.17"]
[Round "8"]
[White "cycygogne"]
[Black "JoliyRoger"]
[Result "1/2-1/2"]
[WhiteElo "2274"]
[BlackElo "2445"]
[TimeControl "180+1"]
[EndTime "9:32:40 PDT"]
[Termination "Game drawn by repetition"]

1. e4 {[%clk 0:03:00.9]} 1... c6 {[%clk 0:02:45]} 2. d4 {[%clk 0:03:00.2]} 2...
d5 {[%clk 0:02:45.2]} 3. Nc3 {[%clk 0:03:00.8]} 3... dxe4 {[%clk 0:02:44.7]} 4.
Nxe4 {[%clk 0:03:01.7]} 4... Nf6 {[%clk 0:02:45.2]} 5. Ng3 {[%clk 0:03:01.5]}
5... Bg4 {[%clk 0:02:44.5]} 6. Be2 {[%clk 0:03:00]} 6... Bxe2 {[%clk 0:02:44.9]}
7. N1xe2 {[%clk 0:03:00.3]} 7... e6 {[%clk 0:02:44.7]} 8. O-O {[%clk 0:02:59.4]}
8... Nbd7 {[%clk 0:02:44.5]} 9. Re1 {[%clk 0:02:55]} 9... Be7 {[%clk 0:02:42.7]}
10. Nf4 {[%clk 0:02:51.5]} 10... O-O {[%clk 0:02:24.5]} 11. Ngh5 {[%clk
0:02:51.5]} 11... Rc8 {[%clk 0:02:15.9]} 12. Qf3 {[%clk 0:02:45.4]} 12... Nxh5
{[%clk 0:02:15.3]} 13. Nxh5 {[%clk 0:02:44.8]} 13... Nf6 {[%clk 0:02:16]} 14. c3
{[%clk 0:02:40.7]} 14... Qd5 {[%clk 0:02:11.1]} 15. Nxf6+ {[%clk 0:02:27.9]}
15... Bxf6 {[%clk 0:02:10.7]} 16. Qg3 {[%clk 0:02:26.7]} 16... b5 {[%clk
0:02:03.9]} 17. Bf4 {[%clk 0:02:25.5]} 17... Rfd8 {[%clk 0:01:36.7]} 18. Be5
{[%clk 0:02:22.9]} 18... Bxe5 {[%clk 0:01:37]} 19. Rxe5 {[%clk 0:02:23.8]} 19...
Qd7 {[%clk 0:01:34.9]} 20. Rae1 {[%clk 0:02:20.6]} 20... Re8 {[%clk 0:01:31.1]}
21. Rg5 {[%clk 0:02:08.8]} 21... f6 {[%clk 0:01:27.8]} 22. Rh5 {[%clk 0:02:01]}
22... Qf7 {[%clk 0:01:20.6]} 23. Qh3 {[%clk 0:01:58.2]} 23... h6 {[%clk
0:01:19.4]} 24. f4 {[%clk 0:01:53]} 24... Rcd8 {[%clk 0:01:08.7]} 25. Rc5 {[%clk
0:01:49.7]} 25... Rd6 {[%clk 0:00:53.2]} 26. Qf3 {[%clk 0:01:47.7]} 26... Qd7
{[%clk 0:00:52.3]} 27. b4 {[%clk 0:01:37.4]} 27... a6 {[%clk 0:00:46.2]} 28. h4
{[%clk 0:01:35.7]} 28... Rd5 {[%clk 0:00:42]} 29. h5 {[%clk 0:01:20.2]} 29...
Rxc5 {[%clk 0:00:33.6]} 30. bxc5 {[%clk 0:01:18.4]} 30... Kf7 {[%clk 0:00:22.5]}
31. Qe4 {[%clk 0:01:12.1]} 31... Rd8 {[%clk 0:00:20.5]} 32. Qg6+ {[%clk
0:01:08.9]} 32... Kf8 {[%clk 0:00:20.8]} 33. g4 {[%clk 0:01:01.5]} 33... Qf7
{[%clk 0:00:21.2]} 34. Qe4 {[%clk 0:00:59.4]} 34... Re8 {[%clk 0:00:19.5]} 35.
Qxc6 {[%clk 0:00:59.1]} 35... f5 {[%clk 0:00:20]} 36. Qd6+ {[%clk 0:00:54.9]}
36... Kg8 {[%clk 0:00:19.6]} 37. gxf5 {[%clk 0:00:53.5]} 37... Qxf5 {[%clk
0:00:19.7]} 38. Qe5 {[%clk 0:00:50.6]} 38... Qg4+ {[%clk 0:00:20]} 39. Kf2
{[%clk 0:00:50.7]} 39... Qh4+ {[%clk 0:00:19.2]} 40. Kf3 {[%clk 0:00:49.8]}
40... Qh3+ {[%clk 0:00:19.4]} 41. Kf2 {[%clk 0:00:49.9]} 41... Qh4+ {[%clk
0:00:19.4]} 42. Kf3 {[%clk 0:00:50.2]} 42... Qh3+ {[%clk 0:00:18]} 43. Ke2
{[%clk 0:00:47.3]} 43... Qxc3 {[%clk 0:00:14.7]} 44. f5 {[%clk 0:00:43.1]} 44...
Qc2+ {[%clk 0:00:07.4]} 45. Kf3 {[%clk 0:00:41.8]} 45... Qd3+ {[%clk 0:00:05.9]}
46. Kf2 {[%clk 0:00:38.7]} 46... Qc2+ {[%clk 0:00:04.7]} 47. Re2 {[%clk
0:00:38.9]} 47... Qc4 {[%clk 0:00:04.7]} 48. fxe6 {[%clk 0:00:38.2]} 48... Rf8+
{[%clk 0:00:05.4]} 49. Kg2 {[%clk 0:00:37.9]} 49... Qc1 {[%clk 0:00:05.1]} 50.
Rf2 {[%clk 0:00:37]} 50... Rxf2+ {[%clk 0:00:01.8]} 51. Kxf2 {[%clk 0:00:37.9]}
51... Qd2+ {[%clk 0:00:02.5]} 52. Kf3 {[%clk 0:00:37.7]} 52... Qd3+ {[%clk
0:00:02.7]} 53. Kf4 {[%clk 0:00:37.3]} 53... Qd2+ {[%clk 0:00:02.9]} 54. Ke4
{[%clk 0:00:37.3]} 54... Qg2+ {[%clk 0:00:03.2]} 55. Kf5 {[%clk 0:00:37.3]}
55... Qf3+ {[%clk 0:00:03]} 56. Qf4 {[%clk 0:00:33.7]} 56... Qd5+ {[%clk
0:00:03.4]} 57. Qe5 {[%clk 0:00:32.7]} 57... Qf3+ {[%clk 0:00:03.8]} 58. Qf4
{[%clk 0:00:32.9]} 58... Qd5+ {[%clk 0:00:04.3]} 59. Qe5 {[%clk 0:00:33.2]}
59... Qf3+ {[%clk 0:00:04.5]} 1/2-1/2

[Event "Early-Titled-Tuesday-Blitz-October-17-2023"]
[Site "Chess.com"]
[Date "2023.10.17"]
[Round "8"]
[White "MdChess1734"]
[Black "Bilan_Danila"]
[Result "1-0"]
[WhiteElo "2430"]
[BlackElo "2562"]
[TimeControl "180+1"]
[EndTime "9:32:42 PDT"]
[Termination "MdChess1734 won by checkmate"]

1. e4 {[%clk 0:02:53.1]} 1... c6 {[%clk 0:03:00.1]} 2. d4 {[%clk 0:02:52.3]}
2... d5 {[%clk 0:03:01]} 3. Nc3 {[%clk 0:02:52.8]} 3... b5 {[%clk 0:02:59.1]} 4.
exd5 {[%clk 0:02:49.1]} 4... b4 {[%clk 0:02:59.4]} 5. Nce2 {[%clk 0:02:41.3]}
5... cxd5 {[%clk 0:02:59.2]} 6. Nf3 {[%clk 0:02:35.4]} 6... Nf6 {[%clk
0:02:59.3]} 7. Ng3 {[%clk 0:02:34.9]} 7... e6 {[%clk 0:02:57.7]} 8. Bd3 {[%clk
0:02:35.3]} 8... Bd6 {[%clk 0:02:57.2]} 9. O-O {[%clk 0:02:35.3]} 9... Ba6
{[%clk 0:02:57.3]} 10. Re1 {[%clk 0:02:33.5]} 10... Qc7 {[%clk 0:02:55.8]} 11.
Nf5 {[%clk 0:02:30.2]} 11... O-O {[%clk 0:02:44.3]} 12. Nxd6 {[%clk 0:02:27.5]}
12... Qxd6 {[%clk 0:02:45.2]} 13. Ne5 {[%clk 0:02:28]} 13... Bxd3 {[%clk
0:02:38.3]} 14. cxd3 {[%clk 0:02:27.5]} 14... Nc6 {[%clk 0:02:23.4]} 15. Bf4
{[%clk 0:01:54]} 15... Nxd4 {[%clk 0:01:54.7]} 16. Ng6 {[%clk 0:01:48.2]} 16...
Qd7 {[%clk 0:01:47.9]} 17. Nxf8 {[%clk 0:01:46.5]} 17... Rxf8 {[%clk 0:01:48.8]}
18. Rc1 {[%clk 0:01:45.7]} 18... a5 {[%clk 0:01:28.6]} 19. Rc7 {[%clk
0:01:35.8]} 19... Qb5 {[%clk 0:01:25.7]} 20. Be5 {[%clk 0:01:33.8]} 20... Nf5
{[%clk 0:01:18.3]} 21. Bxf6 {[%clk 0:01:05.4]} 21... gxf6 {[%clk 0:01:18.5]} 22.
Qf3 {[%clk 0:01:05.9]} 22... b3 {[%clk 0:01:06.7]} 23. a3 {[%clk 0:00:55.1]}
23... Qb6 {[%clk 0:00:58]} 24. Rec1 {[%clk 0:00:40.9]} 24... Qd4 {[%clk
0:00:52.8]} 25. Rc8 {[%clk 0:00:13.8]} 25... Qxb2 {[%clk 0:00:16.4]} 26. Qg4+
{[%clk 0:00:12.9]} 26... Ng7 {[%clk 0:00:16.9]} 27. Qg3 {[%clk 0:00:06.1]} 27...
e5 {[%clk 0:00:04.2]} 28. Qg4 {[%clk 0:00:05]} 28... f5 {[%clk 0:00:04.6]} 29.
Qg5 {[%clk 0:00:05]} 29... f6 {[%clk 0:00:03.6]} 30. Rxf8+ {[%clk 0:00:04]}
30... Kxf8 {[%clk 0:00:04]} 31. Qxf6+ {[%clk 0:00:04.7]} 31... Ke8 {[%clk
0:00:03.8]} 32. Rc8+ {[%clk 0:00:04.7]} 32... Kd7 {[%clk 0:00:04.3]} 33. Qd8+
{[%clk 0:00:03.5]} 33... Ke6 {[%clk 0:00:02.4]} 34. Rc6+ {[%clk 0:00:04]} 34...
Kf7 {[%clk 0:00:02.9]} 35. Qf6+ {[%clk 0:00:04.4]} 35... Ke8 {[%clk 0:00:03.5]}
36. Rc8+ {[%clk 0:00:02.4]} 36... Kd7 {[%clk 0:00:04]} 37. Rd8+ {[%clk
0:00:02.9]} 37... Kc7 {[%clk 0:00:04.2]} 38. Qd6+ {[%clk 0:00:03.5]} 38... Kb7
{[%clk 0:00:05.1]} 39. Rd7+ {[%clk 0:00:03.7]} 39... Ka8 {[%clk 0:00:04.6]} 40.
Qc6+ {[%clk 0:00:04]} 40... Kb8 {[%clk 0:00:03.2]} 41. Qb7# {[%clk 0:00:04.6]}
1-0

[Event "Early-Titled-Tuesday-Blitz-October-17-2023"]
[Site "Chess.com"]
[Date "2023.10.17"]
[Round "8"]
[White "Manukyan_Artak"]
[Black "supereagles1201"]
[Result "0-1"]
[WhiteElo "2466"]
[BlackElo "2371"]
[TimeControl "180+1"]
[EndTime "9:32:42 PDT"]
[Termination "supereagles1201 won on time"]

1. e4 {[%clk 0:02:54.5]} 1... d6 {[%clk 0:02:59.8]} 2. d4 {[%clk 0:02:46.6]}
2... Nf6 {[%clk 0:03:00.3]} 3. f3 {[%clk 0:02:46.7]} 3... e5 {[%clk 0:02:59.3]}
4. d5 {[%clk 0:02:46.4]} 4... Be7 {[%clk 0:02:57.5]} 5. c4 {[%clk 0:02:46.6]}
5... O-O {[%clk 0:02:56.7]} 6. Nc3 {[%clk 0:02:43.7]} 6... Nh5 {[%clk
0:02:55.2]} 7. Nge2 {[%clk 0:02:40.2]} 7... Bg5 {[%clk 0:02:53.7]} 8. g3 {[%clk
0:02:22.3]} 8... Bxc1 {[%clk 0:02:51.6]} 9. Nxc1 {[%clk 0:02:16.3]} 9... a6
{[%clk 0:02:48.9]} 10. Bd3 {[%clk 0:02:15.2]} 10... Nd7 {[%clk 0:02:43.6]} 11.
O-O {[%clk 0:02:03.5]} 11... Nc5 {[%clk 0:02:42]} 12. Bc2 {[%clk 0:02:03.1]}
12... Bh3 {[%clk 0:02:41.2]} 13. Rf2 {[%clk 0:02:02.6]} 13... a5 {[%clk
0:02:28.5]} 14. Nd3 {[%clk 0:02:01.1]} 14... Nxd3 {[%clk 0:02:21.5]} 15. Bxd3
{[%clk 0:02:02]} 15... g6 {[%clk 0:02:14]} 16. g4 {[%clk 0:01:50.3]} 16... Nf4
{[%clk 0:02:13]} 17. Ne2 {[%clk 0:01:50]} 17... Qh4 {[%clk 0:02:00.5]} 18. Nxf4
{[%clk 0:01:29.3]} 18... exf4 {[%clk 0:02:01.4]} 19. Qd2 {[%clk 0:01:29.4]}
19... g5 {[%clk 0:01:53.7]} 20. c5 {[%clk 0:01:20.1]} 20... h5 {[%clk
0:01:49.7]} 21. gxh5 {[%clk 0:01:16]} 21... f6 {[%clk 0:01:35.3]} 22. Rc1 {[%clk
0:01:10.2]} 22... Rfc8 {[%clk 0:01:25.9]} 23. Bf1 {[%clk 0:01:06.9]} 23... Bxf1
{[%clk 0:01:23.7]} 24. Kxf1 {[%clk 0:01:05]} 24... Qxh5 {[%clk 0:01:24.2]} 25.
Ke2 {[%clk 0:01:03.9]} 25... Kf7 {[%clk 0:01:06]} 26. Qd3 {[%clk 0:00:53.6]}
26... Qh7 {[%clk 0:00:24.3]} 27. Qb5 {[%clk 0:00:50]} 27... f5 {[%clk 0:00:24]}
28. Qd7+ {[%clk 0:00:49.1]} 28... Kg8 {[%clk 0:00:22.2]} 29. Qxf5 {[%clk
0:00:39.1]} 29... Qxf5 {[%clk 0:00:21.2]} 30. exf5 {[%clk 0:00:40]} 30... Kf7
{[%clk 0:00:19.5]} 31. Kd3 {[%clk 0:00:38.4]} 31... Kf6 {[%clk 0:00:18.4]} 32.
Re2 {[%clk 0:00:37.9]} 32... Kxf5 {[%clk 0:00:17.9]} 33. Re7 {[%clk 0:00:36.8]}
33... dxc5 {[%clk 0:00:17.6]} 34. Rxc5 {[%clk 0:00:35.1]} 34... Rh8 {[%clk
0:00:16.7]} 35. Rcxc7 {[%clk 0:00:29.8]} 35... Rxh2 {[%clk 0:00:15]} 36. d6
{[%clk 0:00:23.9]} 36... Rf2 {[%clk 0:00:14.1]} 37. d7 {[%clk 0:00:22.7]} 37...
Rxf3+ {[%clk 0:00:14.2]} 38. Kd4 {[%clk 0:00:22.9]} 38... Rd8 {[%clk 0:00:12.5]}
39. Re8 {[%clk 0:00:22.4]} 39... Rxd7+ {[%clk 0:00:09.6]} 40. Rxd7 {[%clk
0:00:23.3]} 40... Rf1 {[%clk 0:00:09.8]} 41. Rd6 {[%clk 0:00:17.9]} 41... Rd1+
{[%clk 0:00:08.3]} 42. Kc5 {[%clk 0:00:17.4]} 42... Rxd6 {[%clk 0:00:07.7]} 43.
Kxd6 {[%clk 0:00:17]} 43... f3 {[%clk 0:00:08]} 44. Rf8+ {[%clk 0:00:15.8]}
44... Ke4 {[%clk 0:00:08.1]} 45. Rg8 {[%clk 0:00:14.1]} 45... f2 {[%clk
0:00:07.1]} 46. Rf8 {[%clk 0:00:12.7]} 46... Ke3 {[%clk 0:00:07.6]} 47. Rf5
{[%clk 0:00:08.4]} 47... g4 {[%clk 0:00:07.8]} 0-1

[Event "Early-Titled-Tuesday-Blitz-October-17-2023"]
[Site "Chess.com"]
[Date "2023.10.17"]
[Round "8"]
[White "DanyKopy"]
[Black "Goryachkina"]
[Result "0-1"]
[WhiteElo "2530"]
[BlackElo "2655"]
[TimeControl "180+1"]
[EndTime "9:32:43 PDT"]
[Termination "Goryachkina won by resignation"]

1. e4 {[%clk 0:03:00.9]} 1... e6 {[%clk 0:02:59.2]} 2. d4 {[%clk 0:03:00.5]}
2... d5 {[%clk 0:02:59.6]} 3. e5 {[%clk 0:03:01.2]} 3... c5 {[%clk 0:02:59.3]}
4. c3 {[%clk 0:03:01.6]} 4... Nc6 {[%clk 0:02:59.4]} 5. Nf3 {[%clk 0:03:02.1]}
5... Nge7 {[%clk 0:02:59.5]} 6. dxc5 {[%clk 0:02:38.5]} 6... Ng6 {[%clk
0:02:56.9]} 7. Bb5 {[%clk 0:02:31.9]} 7... Bxc5 {[%clk 0:02:55.1]} 8. O-O {[%clk
0:02:31.5]} 8... O-O {[%clk 0:02:54]} 9. Re1 {[%clk 0:02:29.3]} 9... Qb6 {[%clk
0:02:32.1]} 10. Qe2 {[%clk 0:01:45.1]} 10... Ngxe5 {[%clk 0:02:28.3]} 11. Nxe5
{[%clk 0:01:27.1]} 11... Nxe5 {[%clk 0:02:28.1]} 12. b4 {[%clk 0:00:56.9]} 12...
Bd6 {[%clk 0:02:18.8]} 13. Bf4 {[%clk 0:00:45.2]} 13... Ng6 {[%clk 0:02:14.7]}
14. Bxd6 {[%clk 0:00:42.5]} 14... Qxd6 {[%clk 0:02:15.6]} 15. Nd2 {[%clk
0:00:41.2]} 15... Bd7 {[%clk 0:02:15.3]} 16. Bd3 {[%clk 0:00:40.2]} 16... Rac8
{[%clk 0:02:14.2]} 17. Rac1 {[%clk 0:00:39.2]} 17... Nf4 {[%clk 0:02:08.9]} 18.
Qe3 {[%clk 0:00:38.7]} 18... d4 {[%clk 0:01:51.3]} 19. cxd4 {[%clk 0:00:27.8]}
19... Rxc1 {[%clk 0:01:47.4]} 20. Rxc1 {[%clk 0:00:28.7]} 20... Nxd3 {[%clk
0:01:47.1]} 21. Qxd3 {[%clk 0:00:29.6]} 21... Qxb4 {[%clk 0:01:47.4]} 22. Nf3
{[%clk 0:00:29.3]} 22... Bc6 {[%clk 0:01:30.9]} 23. Ne5 {[%clk 0:00:29.3]} 23...
Bd5 {[%clk 0:01:29]} 24. h4 {[%clk 0:00:26.2]} 24... f6 {[%clk 0:01:23.9]} 25.
Nd7 {[%clk 0:00:16.1]} 25... Rd8 {[%clk 0:01:16.7]} 26. Rc7 {[%clk 0:00:13]}
26... Qe7 {[%clk 0:01:09.6]} 27. Qb5 {[%clk 0:00:06.7]} 27... Bc6 {[%clk
0:01:02.2]} 28. Qc5 {[%clk 0:00:06]} 28... Qxc5 {[%clk 0:00:43.5]} 29. Nxc5
{[%clk 0:00:06.9]} 29... Rxd4 {[%clk 0:00:34]} 30. Rxg7+ {[%clk 0:00:07]} 30...
Kxg7 {[%clk 0:00:24.9]} 31. Nxe6+ {[%clk 0:00:07.3]} 31... Kg6 {[%clk
0:00:21.1]} 32. Nxd4 {[%clk 0:00:08.2]} 32... Bd5 {[%clk 0:00:21.4]} 33. a3
{[%clk 0:00:07.8]} 33... Kh5 {[%clk 0:00:17.6]} 34. g3 {[%clk 0:00:07.8]} 34...
Kg4 {[%clk 0:00:18]} 35. Kf1 {[%clk 0:00:08.1]} 35... f5 {[%clk 0:00:17.7]} 36.
Ke2 {[%clk 0:00:08.2]} 36... f4 {[%clk 0:00:17.8]} 37. gxf4 {[%clk 0:00:08.4]}
37... Kxh4 {[%clk 0:00:17.5]} 38. Ke3 {[%clk 0:00:08.4]} 38... h5 {[%clk
0:00:10.9]} 39. Nb5 {[%clk 0:00:04.4]} 39... a6 {[%clk 0:00:09.3]} 40. Nc7
{[%clk 0:00:04.4]} 40... Bf7 {[%clk 0:00:08.3]} 41. Ke4 {[%clk 0:00:04]} 41...
Kg4 {[%clk 0:00:08.5]} 42. Nd5 {[%clk 0:00:03.4]} 42... Bxd5+ {[%clk 0:00:06.8]}
43. Kxd5 {[%clk 0:00:03.1]} 43... Kxf4 {[%clk 0:00:07.2]} 0-1

[Event "Early-Titled-Tuesday-Blitz-October-17-2023"]
[Site "Chess.com"]
[Date "2023.10.17"]
[Round "8"]
[White "ChainedDowntohell"]
[Black "borocotoajua"]
[Result "1-0"]
[WhiteElo "2480"]
[BlackElo "2588"]
[TimeControl "180+1"]
[EndTime "9:32:43 PDT"]
[Termination "ChainedDowntohell won by resignation"]

1. d4 {[%clk 0:03:00.9]} 1... Nf6 {[%clk 0:02:58.9]} 2. c4 {[%clk 0:03:00.9]}
2... g6 {[%clk 0:02:58.7]} 3. Nc3 {[%clk 0:03:00.5]} 3... Bg7 {[%clk 0:02:58.8]}
4. e4 {[%clk 0:03:00.9]} 4... d6 {[%clk 0:02:58.9]} 5. Bd3 {[%clk 0:02:59.8]}
5... O-O {[%clk 0:02:58.6]} 6. Nge2 {[%clk 0:02:59.8]} 6... Nc6 {[%clk
0:02:58.1]} 7. O-O {[%clk 0:02:52]} 7... Nh5 {[%clk 0:02:55.9]} 8. d5 {[%clk
0:02:48.7]} 8... Ne5 {[%clk 0:02:52.3]} 9. Be3 {[%clk 0:02:42.9]} 9... e6 {[%clk
0:02:45.6]} 10. f3 {[%clk 0:02:33.5]} 10... c6 {[%clk 0:02:39.5]} 11. Rc1 {[%clk
0:02:30.4]} 11... Re8 {[%clk 0:02:31.3]} 12. b3 {[%clk 0:02:25.3]} 12... Bd7
{[%clk 0:02:03.6]} 13. Qd2 {[%clk 0:02:21]} 13... Rc8 {[%clk 0:02:00.9]} 14.
Rfd1 {[%clk 0:02:19.8]} 14... Nxd3 {[%clk 0:01:50.9]} 15. Qxd3 {[%clk
0:02:19.3]} 15... exd5 {[%clk 0:01:48.3]} 16. exd5 {[%clk 0:02:06.8]} 16... c5
{[%clk 0:01:44.1]} 17. Qd2 {[%clk 0:01:47.9]} 17... Be5 {[%clk 0:01:28.8]} 18.
Bg5 {[%clk 0:01:34.9]} 18... Qa5 {[%clk 0:01:08.3]} 19. g4 {[%clk 0:01:28.2]}
19... Nf6 {[%clk 0:01:02.1]} 20. Kg2 {[%clk 0:01:16.6]} 20... a6 {[%clk
0:00:37.7]} 21. Bxf6 {[%clk 0:00:58.8]} 21... Bxf6 {[%clk 0:00:35.8]} 22. Ne4
{[%clk 0:00:59.4]} 22... Qd8 {[%clk 0:00:28.4]} 23. Nxd6 {[%clk 0:00:59.4]}
23... Qe7 {[%clk 0:00:11.7]} 24. Nxc8 {[%clk 0:00:52.2]} 24... Qxe2+ {[%clk
0:00:10.6]} 25. Qxe2 {[%clk 0:00:51.9]} 25... Rxe2+ {[%clk 0:00:11.5]} 26. Kf1
{[%clk 0:00:51.9]} 26... Rxa2 {[%clk 0:00:12.4]} 27. Nb6 {[%clk 0:00:50.9]}
27... Be8 {[%clk 0:00:10.1]} 28. d6 {[%clk 0:00:50]} 28... Bc6 {[%clk
0:00:10.2]} 29. Nd5 {[%clk 0:00:34.6]} 29... Bd8 {[%clk 0:00:09.2]} 30. Re1
{[%clk 0:00:26]} 30... Rxh2 {[%clk 0:00:06.7]} 31. Ne7+ {[%clk 0:00:23.7]} 31...
Kg7 {[%clk 0:00:06.2]} 32. Nxc6 {[%clk 0:00:22]} 32... bxc6 {[%clk 0:00:07.1]}
33. Re8 {[%clk 0:00:20.1]} 33... Bh4 {[%clk 0:00:06.7]} 34. Rd1 {[%clk
0:00:19.9]} 34... Rf2+ {[%clk 0:00:05.6]} 35. Kg1 {[%clk 0:00:19.8]} 35... Rxf3
{[%clk 0:00:06]} 36. d7 {[%clk 0:00:19.8]} 36... Rg3+ {[%clk 0:00:06.5]} 37. Kh2
{[%clk 0:00:19.3]} 37... Rxb3 {[%clk 0:00:07]} 38. d8=Q {[%clk 0:00:18.7]} 38...
Bxd8 {[%clk 0:00:07.5]} 39. Rdxd8 {[%clk 0:00:19.2]} 39... Rb2+ {[%clk
0:00:06.7]} 40. Kg3 {[%clk 0:00:19]} 40... h6 {[%clk 0:00:06.4]} 41. Rd6 {[%clk
0:00:17.9]} 41... Rb3+ {[%clk 0:00:05.9]} 42. Kf2 {[%clk 0:00:17.9]} 42... Rb2+
{[%clk 0:00:06.1]} 43. Re2 {[%clk 0:00:17.3]} 43... Rb4 {[%clk 0:00:05.9]} 44.
Re4 {[%clk 0:00:16.8]} 44... Rb2+ {[%clk 0:00:06]} 45. Kf3 {[%clk 0:00:16.8]}
45... Rb3+ {[%clk 0:00:06.5]} 46. Ke2 {[%clk 0:00:17]} 46... Rb2+ {[%clk
0:00:06.7]} 47. Kd3 {[%clk 0:00:17.1]} 47... Rb1 {[%clk 0:00:06.9]} 48. Rxc6
{[%clk 0:00:16.8]} 48... a5 {[%clk 0:00:07.4]} 49. Rxc5 {[%clk 0:00:16.9]} 49...
a4 {[%clk 0:00:08.3]} 50. Ra5 {[%clk 0:00:17]} 50... Rb3+ {[%clk 0:00:07.6]} 51.
Kc2 {[%clk 0:00:16.5]} 51... Rb4 {[%clk 0:00:05.8]} 52. Rb5 {[%clk 0:00:16.3]}
1-0

[Event "Early-Titled-Tuesday-Blitz-October-17-2023"]
[Site "Chess.com"]
[Date "2023.10.17"]
[Round "8"]
[White "GP9isback23"]
[Black "Nitzan_Steinberg"]
[Result "0-1"]
[WhiteElo "2674"]
[BlackElo "2855"]
[TimeControl "180+1"]
[EndTime "9:32:45 PDT"]
[Termination "Nitzan_Steinberg won by resignation"]

1. Nf3 {[%clk 0:02:59.2]} 1... d5 {[%clk 0:03:00]} 2. d4 {[%clk 0:02:56.9]} 2...
Nf6 {[%clk 0:02:58.5]} 3. e3 {[%clk 0:02:51.5]} 3... Bg4 {[%clk 0:02:51.9]} 4.
Be2 {[%clk 0:02:51.6]} 4... e6 {[%clk 0:02:51.1]} 5. O-O {[%clk 0:02:51.9]} 5...
c5 {[%clk 0:02:47.8]} 6. h3 {[%clk 0:02:43]} 6... Bxf3 {[%clk 0:02:47.8]} 7.
Bxf3 {[%clk 0:02:43]} 7... Nc6 {[%clk 0:02:46.5]} 8. c3 {[%clk 0:02:34.7]} 8...
Be7 {[%clk 0:02:42.8]} 9. Nd2 {[%clk 0:02:24.9]} 9... cxd4 {[%clk 0:02:36.9]}
10. cxd4 {[%clk 0:02:20.1]} 10... O-O {[%clk 0:02:37.8]} 11. a3 {[%clk
0:02:16.6]} 11... Nd7 {[%clk 0:02:28]} 12. b3 {[%clk 0:02:14.3]} 12... a5 {[%clk
0:02:23.1]} 13. Bb2 {[%clk 0:02:13.1]} 13... a4 {[%clk 0:02:20.8]} 14. b4 {[%clk
0:02:12]} 14... b5 {[%clk 0:02:16.6]} 15. Rc1 {[%clk 0:02:12.3]} 15... Rc8
{[%clk 0:02:15.1]} 16. Be2 {[%clk 0:02:09.1]} 16... Na7 {[%clk 0:02:14.9]} 17.
Bd3 {[%clk 0:01:47.4]} 17... Nb6 {[%clk 0:02:13.1]} 18. Qe2 {[%clk 0:01:47.7]}
18... Nc4 {[%clk 0:02:13.2]} 19. Nxc4 {[%clk 0:01:47.7]} 19... dxc4 {[%clk
0:02:04.4]} 20. Bb1 {[%clk 0:01:45.3]} 20... Bf6 {[%clk 0:01:59.6]} 21. Bc3
{[%clk 0:01:39.8]} 21... Qb6 {[%clk 0:01:50.6]} 22. Rcd1 {[%clk 0:01:31.3]}
22... Rfd8 {[%clk 0:01:50.4]} 23. Rd2 {[%clk 0:01:30.9]} 23... Rd7 {[%clk
0:01:49.1]} 24. Rfd1 {[%clk 0:01:31.2]} 24... Rcd8 {[%clk 0:01:49.4]} 25. Be4
{[%clk 0:01:22.9]} 25... g6 {[%clk 0:01:43.6]} 26. g3 {[%clk 0:01:16.8]} 26...
Nc8 {[%clk 0:01:37.8]} 27. h4 {[%clk 0:01:10.3]} 27... h5 {[%clk 0:01:37.5]} 28.
Qf3 {[%clk 0:01:05.5]} 28... Bg7 {[%clk 0:01:36]} 29. Qf4 {[%clk 0:00:41.3]}
29... Ne7 {[%clk 0:01:34.9]} 30. Bg2 {[%clk 0:00:38.8]} 30... Nd5 {[%clk
0:01:34.6]} 31. Bxd5 {[%clk 0:00:39]} 31... exd5 {[%clk 0:01:28.3]} 32. Qf3
{[%clk 0:00:32.7]} 32... Re8 {[%clk 0:01:28]} 33. Re2 {[%clk 0:00:30.3]} 33...
Re4 {[%clk 0:01:24.9]} 34. Rde1 {[%clk 0:00:25.3]} 34... Rde7 {[%clk 0:01:24.7]}
35. Qg2 {[%clk 0:00:22.2]} 35... Bh6 {[%clk 0:01:21.5]} 36. Kh2 {[%clk
0:00:18.3]} 36... Qf6 {[%clk 0:01:20.7]} 37. Bd2 {[%clk 0:00:14.5]} 37... Re8
{[%clk 0:01:11.3]} 38. f3 {[%clk 0:00:13.7]} 38... R4e6 {[%clk 0:01:08.6]} 39.
f4 {[%clk 0:00:10.9]} 39... Re4 {[%clk 0:01:07.8]} 40. Qf3 {[%clk 0:00:10]}
40... Qf5 {[%clk 0:01:07.9]} 41. Bc3 {[%clk 0:00:09.4]} 41... Bg7 {[%clk
0:01:07.6]} 42. Kg2 {[%clk 0:00:09.4]} 42... R8e6 {[%clk 0:01:07.8]} 43. Qf2
{[%clk 0:00:09.6]} 43... Qf6 {[%clk 0:01:07.7]} 44. Qf3 {[%clk 0:00:10]} 44...
Qe7 {[%clk 0:01:08.2]} 45. Qf2 {[%clk 0:00:10.4]} 45... Rf6 {[%clk 0:01:01.8]}
46. Qf3 {[%clk 0:00:10.2]} 46... Rf5 {[%clk 0:00:59.6]} 47. Qf2 {[%clk
0:00:10.3]} 47... f6 {[%clk 0:00:59.9]} 48. Qf3 {[%clk 0:00:10]} 48... Qf7
{[%clk 0:01:00.4]} 49. g4 {[%clk 0:00:08.2]} 49... hxg4 {[%clk 0:01:00.4]} 50.
Qxg4 {[%clk 0:00:09.1]} 50... Kh7 {[%clk 0:01:00.8]} 51. Rh1 {[%clk 0:00:08.3]}
51... Rh5 {[%clk 0:01:01.3]} 52. Kf3 {[%clk 0:00:07.4]} 52... f5 {[%clk
0:00:58.9]} 53. Qg3 {[%clk 0:00:07.1]} 53... Qe8 {[%clk 0:00:56.2]} 54. Rhh2
{[%clk 0:00:06.2]} 54... Bf6 {[%clk 0:00:55.5]} 55. Be1 {[%clk 0:00:06.1]} 55...
Re7 {[%clk 0:00:54.2]} 56. Qg1 {[%clk 0:00:06.1]} 56... Rg7 {[%clk 0:00:50.8]}
57. Reg2 {[%clk 0:00:06.2]} 57... Qe4+ {[%clk 0:00:51.4]} 58. Ke2 {[%clk
0:00:04.9]} 58... Qd3+ {[%clk 0:00:49.6]} 59. Kf3 {[%clk 0:00:03.8]} 59... Qxa3
{[%clk 0:00:49.9]} 60. Rg5 {[%clk 0:00:03]} 60... Qd3 {[%clk 0:00:46.5]} 61. Qg2
{[%clk 0:00:01.2]} 61... Re7 {[%clk 0:00:41.2]} 62. Kf2 {[%clk 0:00:01.5]} 62...
Qxe3+ {[%clk 0:00:41.4]} 0-1